[Event "VII Totalizator Sportowy 2022"]
[Site "Bydgoszcz"]
[Date "2022.06.27"]
[Round "3.1"]
[White "Kosakowski, Jakub"]
[Black "Heberla, Bartlomiej"]
[Result "1/2-1/2"]
[ECO "C78"]
[WhiteElo "2435"]
[BlackElo "2576"]
[Annotator "TA"]
[PlyCount "85"]
[EventDate "2022.06.25"]
[EventType "swiss"]
[EventCountry "POL"]
[SourceTitle "playchess.com"]
[Source "ChessBase"]
[SourceQuality "1"]
[TimeControl "40/5400+30:1800+30"]

{[%evp 22,85,29,27,39,12,12,0,0,0,0,0,0,0,0,0,0,0,0,0,101,99,105,107,99,102,95,101,127,122,122,123,125,57,137,50,32,37,150,90,90,99,94,0,0,0,0,0,0,0,0,0,0,0,0,0,0,0,0,0,0,0,0,0,0,0]} 1. e4 {[%emt 0:00:07]} e5 {[%emt 0:00:21]} 2. Nf3 {[%emt 0:00:14]} Nc6 {[%emt 0:00:19]} 3. Bb5 {[%emt 0:00:25]} a6 {[%emt 0:00:04]} 4. Ba4 {[%emt 0:00:12]} Nf6 {[%emt 0:00:05]} 5. O-O {[%emt 0:00:45]} b5 {[%emt 0:00:05]} 6. Bb3 {[%emt 0:00:08]} Bc5 {[%emt 0:00:03]} 7. a4 {[%emt 0:01:19]} Bb7 {[%emt 0:01:21]} 8. c3 {[%emt 0:01:26]} d6 {[%emt 0:00:06]} 9. d4 {[%emt 0:00:13]} Bb6 {[%emt 0:00:11]} 10. Re1 {[%emt 0:02:06]} O-O {[%emt 0:00:16]} 11. Bg5 {[%emt 0:02:19]} h6 {[%emt 0:00:06]} 12. Bh4 {[%emt 0:12:09]} exd4 {[%emt 0:00:14] C78: Ruy Lopez: Archangelsk and Möller Defences.} 13. cxd4 {[%emt 0:00:12]} g5 {[%emt 0:00:04] [#]} 14. Nxg5 {[%emt 0:00:13] is now debated instead of 14.Bg3.} hxg5 {[%emt 0:00:16]} 15. Bxg5 {[%emt 0:00:08] Black must now prevent Bd5.} Nxd4 {[%emt 0:00:33]} 16. Bd5 {[%emt 0:00:11]} Ne6 $1 {[%emt 0:01:09]} 17. Bh4 $1 {[%emt 0:00:39]} Bxd5 {[%emt 0:04:11]} 18. exd5 {[%emt 0:00:11]} Ng7 {[%emt 0:00:03] And now ...Re8 would win.} 19. Qf3 {[%emt 0:10:56]} Re8 {[%emt 0:00:07][%cal Re8e1]} 20. Nc3 {[%emt 0:00:12] [#]} Bd4 $146 {[%emt 0:59:59]} (20... Rxe1+ $11 21. Rxe1 Bd4) ({Predecessor:} 20... Rxe1+ 21. Rxe1 Bd4 22. Ne4 Nge8 23. h3 Rb8 24. Nxf6+ Bxf6 25. Rxe8+ Qxe8 26. Bxf6 Qe1+ {½-½ (32) Huschenbeth,N (2624)-Shankland,S (2705) Douglas 2019}) 21. Ne4 $1 $16 {[%emt 0:07:57]} Rxe4 {[%emt 0:01:21]} 22. Rxe4 {[%emt 0:00:11][%mdl 64] Pin} Bxf2+ {[%emt 0:00:03]} 23. Kxf2 {[%emt 0:09:43]} Nxe4+ {[%emt 0:00:31]} 24. Qxe4 {[%emt 0:00:08]} Qd7 {[%emt 0:00:12]} 25. Bf6 {[%emt 0:22:21]} Re8 {[%emt 0:00:56]} 26. Qf3 {[%emt 0:01:19] White is more active.} Qf5 {[%emt 0:00:52]} 27. axb5 {[%emt 0:03:13]} (27. Qxf5 $16 Nxf5 28. Kf3) 27... axb5 {[%emt 0:00:05]} (27... Qc2+ $1 $14 28. Kg1 axb5) 28. Rc1 {[%emt 0:01:27]} ({Better is} 28. Qxf5 $16 {White wants to mate with Qg5.} Nxf5 29. Kf3) 28... Qg6 $14 {[%emt 0:19:23]} 29. Rxc7 {[%emt 0:04:18]} Qb1 {[%emt 0:05:59] [#]} (29... Nf5 $14 30. Bc3 Kf8) 30. Bc3 {[%emt 0:06:03] The board is on fire.} (30. Be5 $142 $1 {[%mdl 512]} Qg6 31. Bxd6 $1 {[%mdl 512]}) 30... Nf5 $16 {[%emt 0:01:22]} 31. Qg4+ {[%emt 0:14:12]} Kf8 {[%emt 0:00:08] [#]} 32. Rxf7+ {[%emt 0:00:34]} Kxf7 $11 {[%emt 0:00:05] The position is equal.} 33. Qh5+ {[%emt 0:00:05]} Kf8 {[%emt 0:02:34] aiming for ...Qc2+.} 34. Qh8+ {[%emt 0:00:05]} Kf7 {[%emt 0:00:15]} (34... Ke7 $5 35. Qh7+ Kf8 36. Qh8+ (36. Bg7+ Kf7 $11) 36... Kf7 37. Qh7+ (37. Qf6+ Kg8 $11) 37... Kf8 38. Qh8+ $11 (38. Bg7+ Kf7 $11)) 35. Qf6+ {[%emt 0:00:20]} Kg8 {[%emt 0:00:03]} 36. Qg6+ {[%emt 0:00:06]} Kf8 {[%emt 0:00:16]} 37. Qf6+ {[%emt 0:00:10]} Kg8 {[%emt 0:00:01]} 38. Qg6+ {[%emt 0:00:06]} Kf8 {[%emt 0:00:02]} 39. Bg7+ {[%emt 0:03:01]} Ke7 {[%emt 0:00:02] ( -> ...Qc2+)} 40. Qe6+ $1 {[%emt 0:00:00]} Kd8 {[%emt 0:00:00]} 41. Bf6+ {[%emt 0:00:25]} Re7 {[%emt 0:03:55]} 42. Bxe7+ {[%emt 0:00:22]} Nxe7 {[%emt 0:00:03]} 43. Qxd6+ {[%emt 0:00:13] Weighted Error Value: White=0.13 (very precise) /Black=0.16 (very precise)} 1/2-1/2

[Event "VII Totalizator Sportowy 2022"]
[Site "Bydgoszcz"]
[Date "2022.06.27"]
[Round "3.2"]
[White "Krasenkow, Michal"]
[Black "Jakubowski, Krzysztof"]
[Result "1/2-1/2"]
[ECO "E15"]
[WhiteElo "2576"]
[BlackElo "2475"]
[Annotator "TA"]
[PlyCount "99"]
[EventDate "2022.06.25"]
[EventType "swiss"]
[EventCountry "POL"]
[SourceTitle "playchess.com"]
[Source "ChessBase"]
[SourceQuality "1"]
[TimeControl "40/5400+30:1800+30"]

{[%evp 9,99,13,21,7,23,0,4,0,-6,-3,0,-7,0,0,0,0,-6,0,10,-20,-15,-39,-25,-56,-34,-38,-22,-45,-51,-81,63,85,87,85,64,64,86,86,86,86,86,87,86,86,95,91,79,6,6,8,8,8,8,0,8,5,8,8,193,67,235,34,34,8,8,-777,-716,-564,0,0,0,0,0,0,0,0,0,0,0,0,0,0,0,0,0,0,0,0,0,0,0,0]} 1. d4 {[%emt 0:00:04]} Nf6 {[%emt 0:00:14]} 2. c4 {[%emt 0:00:05]} e6 {[%emt 0:00:07]} 3. Nf3 {[%emt 0:00:03]} b6 {[%emt 0:00:12]} 4. g3 {[%emt 0:03:30]} Ba6 {[%emt 0:00:11]} 5. Nbd2 {[%emt 0:00:28]} Be7 {[%emt 0:00:51]} 6. e4 {[%emt 0:01:25][%cal Be2e4,Be4e5][%mdl 32] E15: Queen's Indian: 4 g3 sidelines, 4 g3 Ba6 and 4 g3 Bb7 early deviations.} O-O {[%emt 0:00:49] [#]} 7. e5 $146 {[%emt 0:02:04]} ({Predecessor:} 7. Bg2 Bb7 8. e5 Ne8 9. O-O c5 10. Qe2 d5 11. Rd1 Nc7 12. b3 a5 13. a4 {½-½ (22) Farnik,K (2111)-Perikov,Y (2171) FICGS email 2019}) 7... Ne8 {[%emt 0:00:19]} 8. Bg2 {[%emt 0:00:27]} d5 {[%emt 0:03:49]} 9. Qc2 {[%emt 0:05:34]} c5 {[%emt 0:09:23]} 10. O-O {[%emt 0:07:37]} Nc7 {[%emt 0:10:56]} 11. dxc5 {[%emt 0:03:04]} bxc5 {[%emt 0:04:29]} 12. Rd1 {[%emt 0:05:06]} Nc6 {[%emt 0:02:34][%cal Bb8c6,Bc6a5,Ba5b3][%mdl 32]} 13. a3 {[%emt 0:00:43][%cal Ob2b4]} Rb8 {[%emt 0:04:49] Inhibits b4.} 14. b3 {[%emt 0:03:44][%cal Od2e4]} (14. b4 {feels hotter.} cxb4 15. cxd5 Qxd5 16. Ng5) 14... Qc8 {[%emt 0:04:52]} 15. Nf1 {[%emt 0:12:35]} Qb7 {[%emt 0:05:40]} 16. Rd3 {[%emt 0:03:45]} Na5 {[%emt 0:04:22][%cal Ra5b3]} 17. Ne3 {[%emt 0:05:20]} f5 {[%emt 0:07:21]} ({Don't do} 17... Nxb3 18. Rb1 $16) 18. Bd2 {[%emt 0:07:25]} Nxb3 {[%emt 0:07:16]} 19. Rb1 {[%emt 0:00:17][%cal Rd3b3]} Bxc4 {[%emt 0:00:11]} (19... dxc4 $17 20. Rd7 Bd8) 20. Nxc4 $14 {[%emt 0:00:40]} dxc4 {[%emt 0:00:05]} 21. Qxc4 {[%emt 0:12:08]} Nxd2 {[%emt 0:02:53]} 22. Nxd2 {[%emt 0:00:15]} Qc8 {[%emt 0:02:48]} 23. Rxb8 {[%emt 0:01:58] White is much more active.} Qxb8 {[%emt 0:00:05]} 24. Rd7 {[%emt 0:00:10]} Rf7 {[%emt 0:00:41] [#]} 25. Rxc7 $1 {[%emt 0:18:50][%mdl 64] Remove Defender} Qxc7 {[%emt 0:00:35]} 26. Qxe6 {[%emt 0:00:02]} Kf8 {[%emt 0:08:20]} 27. Bd5 $40 {[%emt 0:02:34][%csl Gd5][%cal Re6f7][%mdl 128] White wants a kill.} Bd8 {[%emt 0:00:11]} 28. Nc4 {[%emt 0:02:13]} (28. Nb3 $16) 28... Qd7 $11 {[%emt 0:01:12]} 29. Qxf7+ {[%emt 0:00:06]} Qxf7 {[%emt 0:00:04]} 30. Bxf7 {[%emt 0:00:05]} Kxf7 {[%emt 0:00:04][%mdl 4096] Endgame KB-KN} 31. Kf1 {[%emt 0:00:09]} Ke6 {[%emt 0:00:08]} 32. Ke2 {[%emt 0:00:04]} g5 {[%emt 0:00:09]} 33. f4 {[%emt 0:00:18]} g4 $2 {[%emt 0:01:07] [#]} (33... Be7 $11 {and Black is okay.}) 34. Kd3 {[%emt 0:01:25]} (34. Nd6 $1 $18) 34... h5 $2 {[%emt 0:00:33] [#]} (34... Be7 $1 $14) 35. Ne3 $2 {[%emt 0:01:46]} (35. Nd6 $1 $18) 35... Ba5 $14 {[%emt 0:03:17]} 36. Kc4 {[%emt 0:00:57]} Be1 $1 {[%emt 0:00:06]} 37. Nd1 $2 {[%emt 0:00:59][%mdl 8192]} ({Reject} 37. Kxc5 Bf2 38. Kd4 Bg1 $15) (37. Nd5 $11) 37... h4 $19 38. gxh4 {[%emt 0:00:01]} Bxh4 $2 {[%emt 0:02:40]} ({Better is} 38... Bd2 $19 39. Nf2 Bxf4) 39. Nb2 {[%emt 0:00:26] Strongly threatening Nd3. The position is equal.} Bf2 {[%emt 0:02:27]} 40. Nd3 {[%emt 0:00:00]} Bg1 {[%emt 0:00:00]} 41. Nxc5+ {[%emt 0:00:12]} Ke7 {[%emt 0:00:27]} 42. Kd5 {[%emt 0:00:44]} Bxh2 {[%emt 0:00:14] ...g3 is the strong threat.} 43. Nd3 {[%emt 0:00:33]} Bg1 {[%emt 0:09:15] And now ...Be3 would win.} 44. Ne1 {[%emt 0:04:20]} Be3 {[%emt 0:02:13]} 45. Ng2 {[%emt 0:00:57]} Bc1 {[%emt 0:00:05]} 46. a4 {[%emt 0:01:17]} a5 {[%emt 0:00:05]} 47. Nh4 {[%emt 0:10:01]} Kf7 {[%emt 0:11:30]} 48. Ng2 {[%emt 0:07:05]} Ke7 {[%emt 0:02:02]} 49. Nh4 {[%emt 0:01:14]} Kf7 {[%emt 0:00:06]} 50. Ng2 {[%emt 0:06:50] Weighted Error Value: White=0.39/Black=0.35} 1/2-1/2

[Event "VII Totalizator Sportowy 2022"]
[Site "Bydgoszcz"]
[Date "2022.06.27"]
[Round "3.3"]
[White "Tomczak, Jacek"]
[Black "Licznerski, Lukasz"]
[Result "1/2-1/2"]
[ECO "B14"]
[WhiteElo "2584"]
[BlackElo "2439"]
[Annotator "TA"]
[PlyCount "214"]
[EventDate "2022.06.25"]
[EventType "swiss"]
[EventCountry "POL"]
[SourceTitle "playchess.com"]
[Source "ChessBase"]
[SourceQuality "1"]
[TimeControl "40/5400+30:1800+30"]

{[%evp 51,214,21,4,14,13,-8,-11,-6,-8,-8,-8,-65,-62,-94,-116,-97,-86,-81,-72,-75,-48,-48,-34,-32,-14,-72,-72,-72,-75,-72,-72,-72,-72,-79,-72,-95,-58,-57,-51,-53,-33,-33,-31,-27,-29,-31,-31,-33,-33,-40,-26,-26,-26,-26,-26,-33,-26,-26,-33,-33,-33,-33,0,-33,-33,-33,-33,-33,-33,-33,-33,-33,-26,-33,-26,-33,-33,-33,-33,-33,-33,-33,-37,-40,-40,-52,-52,-54,-40,-54,-8,-8,-7,-8,-7,-8,-7,-7,-7,-8,-7,-7,-7,-8,-7,-8,-8,-8,-8,-8,-8,-8,-8,-8,-8,-8,-7,-8,-8,-8,-8,-8,-8,-8,-7,-7,-7,-8,-7,-7,-7,-7,-7,-8,-8,-8,-8,-8,-8,-8,-8,-8,-8,-8,-8,-8,-8,-8,-8,-8,-8,-8,-8,-8,-8,-8,-8,-8,-7,-8,-8,-8,-8,-8,-8]} 1. e4 {[%emt 0:00:03]} c6 {[%emt 0:08:49]} 2. d4 {[%emt 0:00:13]} d5 {[%emt 0:00:02]} 3. exd5 {[%emt 0:00:17]} cxd5 {[%emt 0:00:02]} 4. c4 {[%emt 0:00:11]} Nf6 {[%emt 0:00:06]} 5. Nc3 {[%emt 0:00:12]} g6 {[%emt 0:01:52]} 6. Qb3 {[%emt 0:00:23]} Bg7 {[%emt 0:00:07]} 7. cxd5 {[%emt 0:00:17]} O-O {[%emt 0:00:03]} 8. Be2 {[%emt 0:00:27]} Na6 {[%emt 0:01:50]} 9. Bf3 {[%emt 0:00:34]} Qb6 {[%emt 0:01:10]} 10. Nge2 {[%emt 0:00:52]} Qxb3 {[%emt 0:04:05]} 11. axb3 {[%emt 0:00:16]} Nb4 {[%emt 0:00:10]} 12. O-O {[%emt 0:00:17]} Rd8 {[%emt 0:01:28]} 13. Ra5 {[%emt 0:01:28]} a6 {[%emt 0:12:25]} 14. Na4 {[%emt 0:03:39]} b5 {[%emt 0:04:57]} 15. d6 {[%emt 0:02:13]} Ra7 {[%emt 0:01:02]} 16. Bd2 {[%emt 0:00:17]} Nbd5 {[%emt 0:11:48]} 17. dxe7 {[%emt 0:35:22]} Rxe7 {[%emt 0:00:18]} 18. Nc5 {[%emt 0:00:23]} Bg4 {[%emt 0:03:31]} 19. Nc3 {[%emt 0:06:31]} Bxf3 {[%emt 0:02:46]} 20. gxf3 {[%emt 0:02:01]} Nb4 {[%emt 0:07:52]} 21. Nxb5 {[%emt 0:04:51]} axb5 {[%emt 0:01:00]} 22. Bxb4 {[%emt 0:02:24]} Nd5 {[%emt 0:00:02]} 23. Nd3 {[%emt 0:14:51]} Nxb4 {[%emt 0:12:11]} 24. Nxb4 {[%emt 0:00:06]} Re2 {[%emt 0:01:16]} 25. Nc6 {[%emt 0:11:39]} Rd6 {[%emt 0:00:27]} 26. Ra8+ {[%emt 0:00:27]} Bf8 {[%emt 0:00:02]} 27. Rc1 {[%emt 0:05:52]} Kg7 {[%emt 0:00:30]} 28. Rd8 {[%emt 0:04:49]} Rxd8 {[%emt 0:09:49]} 29. Nxd8 {[%emt 0:00:03]} Be7 {[%emt 0:00:03]} 30. Nc6 {[%emt 0:00:56]} Bh4 {[%emt 0:00:03]} 31. Ne5 {[%emt 0:02:47]} ({White should try} 31. Rc5 $11) 31... Rxb2 $15 {[%emt 0:02:09]} 32. Nd3 {[%emt 0:01:09]} Rxb3 {[%emt 0:04:14]} 33. Rd1 {[%emt 0:00:02]} Bf6 {[%emt 0:04:51]} 34. d5 {[%emt 0:00:26]} Be7 {[%emt 0:05:01]} 35. Kf1 {[%emt 0:00:04]} Bd6 {[%emt 0:00:11]} 36. Ke2 {[%emt 0:00:07]} b4 {[%emt 0:01:31]} (36... Bxh2 $2 37. f4 $18) 37. Rc1 {[%emt 0:00:48]} Rc3 {[%emt 0:00:18]} (37... Bxh2 38. f4 Ra3 39. d6 $11) 38. Rb1 {[%emt 0:01:35]} (38. Rxc3 $11 bxc3 39. f4) 38... Rc4 $17 {[%emt 0:00:12]} (38... Bxh2 39. f4 $11) 39. Ke3 {[%emt 0:00:09]} g5 {[%emt 0:00:42]} 40. h3 {[%emt 0:00:00]} Kf6 {[%emt 0:00:00]} 41. Ra1 {[%emt 0:02:25]} Bf4+ {[%emt 0:20:20]} 42. Ke2 {[%emt 0:10:43]} Rc2+ {[%emt 0:04:14]} 43. Kf1 {[%emt 0:04:54]} Bd6 {[%emt 0:02:22]} 44. Ra6 {[%emt 0:01:12]} Ke7 {[%emt 0:00:02]} 45. Ra7+ {[%emt 0:06:00]} ({But not} 45. Rb6 Kd7 46. Ke1 Kc7 $17) 45... Kd8 {[%emt 0:00:33]} 46. Rxf7 {[%emt 0:03:08]} Rd2 {[%emt 0:00:36]} 47. Nxb4 $1 {[%emt 0:00:11]} Bxb4 {[%emt 0:00:06]} 48. Rxh7 {[%emt 0:00:07]} Be7 {[%emt 0:05:27]} ({Inferior is} 48... Rxd5 49. h4 $17) 49. Rh6 {[%emt 0:00:40]} Rxd5 {[%emt 0:00:55]} 50. Re6 $1 {[%emt 0:00:08]} Ke8 {[%emt 0:01:24]} 51. Re4 {[%emt 0:00:56]} Rf5 {[%emt 0:00:22]} 52. Kg2 {[%emt 0:00:05]} Kf7 {[%emt 0:00:04]} 53. Rg4 {[%emt 0:01:26]} Bf6 {[%emt 0:00:18]} 54. Kg3 {[%emt 0:00:45]} Ke6 {[%emt 0:00:39]} 55. Kg2 {[%emt 0:00:23]} Be7 {[%emt 0:00:16]} 56. Re4+ {[%emt 0:00:21]} Kf7 {[%emt 0:00:18]} 57. Rg4 $1 {[%emt 0:00:07]} Bd8 {[%emt 0:00:26]} 58. Rd4 {[%emt 0:00:25]} Bf6 {[%emt 0:00:01]} 59. Rg4 {[%emt 0:00:33]} Be7 {[%emt 0:00:21]} 60. Re4 {[%emt 0:00:21]} Bc5 {[%emt 0:02:17]} 61. h4 {[%emt 0:00:25]} gxh4 {[%emt 0:00:29]} 62. Rxh4 {[%emt 0:00:06]} Rd5 {[%emt 0:00:05]} 63. Rc4 {[%emt 0:00:49]} Ke6 {[%emt 0:00:13]} 64. Kf1 {[%emt 0:01:36]} Kf5 {[%emt 0:00:13]} 65. Ke2 {[%emt 0:00:29]} Bd6 {[%emt 0:00:03]} 66. Rc8 {[%emt 0:00:52]} Ra5 {[%emt 0:00:10]} 67. Kd3 {[%emt 0:02:01]} Kf4 {[%emt 0:00:27]} 68. Rd8 {[%emt 0:00:22]} Be7 {[%emt 0:01:02]} 69. Rd7 {[%emt 0:00:24]} Re5 {[%emt 0:00:13]} ({Of course not} 69... Kxf3 70. Rxe7 Kxf2 71. Kd4 $11) 70. Kc4 {[%emt 0:00:23]} Kxf3 {[%emt 0:00:13]} (70... Re1 $15 {is more appropriate.} 71. Rd4+ Kg5 72. f4+ Kf6) 71. Rd3+ $11 {[%emt 0:00:04]} Kxf2 {[%emt 0:00:04]} 72. Rd5 {[%emt 0:00:14]} Re6 {[%emt 0:00:31]} 73. Kd3 {[%emt 0:00:36]} Re3+ {[%emt 0:00:56]} 74. Kc4 {[%emt 0:00:06]} Ke2 {[%emt 0:00:12]} 75. Rf5 {[%emt 0:00:14]} Ba3 {[%emt 0:00:46]} 76. Rh5 {[%emt 0:00:27]} Rg3 {[%emt 0:00:18]} 77. Re5+ {[%emt 0:00:34]} Kd2 {[%emt 0:00:01]} 78. Rd5+ {[%emt 0:00:08]} Kc2 {[%emt 0:00:01]} 79. Rd4 {[%emt 0:00:59]} Rg8 {[%emt 0:01:51]} 80. Rh4 {[%emt 0:00:38]} Rc8+ {[%emt 0:00:02]} 81. Kd5 {[%emt 0:00:08]} Kb3 {[%emt 0:00:52]} 82. Rh3+ {[%emt 0:00:46]} Kb4 {[%emt 0:00:06]} 83. Rh2 {[%emt 0:00:42]} Rd8+ {[%emt 0:00:18]} 84. Ke4 {[%emt 0:00:13]} Kb5 {[%emt 0:00:31]} 85. Rc2 {[%emt 0:00:55]} Bc5 {[%emt 0:00:03]} 86. Rg2 {[%emt 0:00:29]} Kc6 {[%emt 0:02:40]} 87. Rg6+ {[%emt 0:00:33]} Bd6 {[%emt 0:00:01]} 88. Rg5 {[%emt 0:00:43]} Ra8 {[%emt 0:00:30]} 89. Rd5 {[%emt 0:00:55]} Rh8 {[%emt 0:00:49]} 90. Rg5 {[%emt 0:00:41]} Rh4+ {[%emt 0:00:03]} 91. Kd3 {[%emt 0:00:08]} Bc5 {[%emt 0:00:16]} 92. Rg6+ {[%emt 0:01:03]} Kb5 {[%emt 0:00:03]} 93. Rg8 {[%emt 0:00:38]} Rd4+ {[%emt 0:00:41]} 94. Ke2 {[%emt 0:00:08]} Kc4 {[%emt 0:00:03]} 95. Kf3 {[%emt 0:00:20]} Kd3 {[%emt 0:00:10]} 96. Rg1 {[%emt 0:00:46]} Kd2 {[%emt 0:01:55]} 97. Rg2+ {[%emt 0:00:07]} Kc3 {[%emt 0:00:02]} 98. Rg5 {[%emt 0:01:13]} Bd6 {[%emt 0:00:18]} 99. Rg1 {[%emt 0:01:04]} Kd2 {[%emt 0:00:14]} 100. Rg4 {[%emt 0:00:19]} Rd5 {[%emt 0:01:50]} 101. Ke4 {[%emt 0:00:11]} Ra5 {[%emt 0:00:14]} 102. Rg6 {[%emt 0:00:37]} Ra4+ {[%emt 0:00:21]} 103. Kd5 {[%emt 0:00:21]} Bf4 {[%emt 0:00:03]} 104. Rb6 {[%emt 0:00:53]} Kc3 {[%emt 0:00:18]} 105. Rb7 {[%emt 0:00:29]} Rd4+ {[%emt 0:00:24]} 106. Ke6 {[%emt 0:00:09]} Kd3 {[%emt 0:01:20]} 107. Rd7 {[%emt 0:00:11]} Rxd7 {[%emt 0:00:02]} 1/2-1/2

[Event "VII Totalizator Sportowy 2022"]
[Site "Bydgoszcz"]
[Date "2022.06.27"]
[Round "3.4"]
[White "Fiedorek, Michal"]
[Black "Gumularz, Szymon"]
[Result "1/2-1/2"]
[ECO "C80"]
[WhiteElo "2315"]
[BlackElo "2513"]
[Annotator "TA"]
[PlyCount "41"]
[EventDate "2022.06.25"]
[EventType "swiss"]
[EventCountry "POL"]
[SourceTitle "playchess.com"]
[Source "ChessBase"]
[SourceQuality "1"]
[TimeControl "40/5400+30:1800+30"]

{[%evp 12,28,43,0,0,0,0,7,0,4,9,7,0,0,6,-18,0,0,4]} 1. e4 {[%emt 0:00:02]} e5 {[%emt 0:00:06]} 2. Nf3 {[%emt 0:00:05]} Nc6 {[%emt 0:00:05]} 3. Bb5 {[%emt 0:00:07][%cal Bf1b5,Bb5a4,Ba4b3][%mdl 32]} a6 {[%emt 0:00:05]} 4. Ba4 {[%emt 0:00:06]} Nf6 {[%emt 0:00:19]} 5. O-O {[%emt 0:00:41]} Nxe4 {[%emt 0:00:29]} 6. d4 {[%emt 0:01:23]} Be7 {[%emt 0:00:18]} 7. Qe2 {[%emt 0:15:33]} b5 $1 {[%emt 0:02:24] The position is equal. seems to push 7...f5 aside. C84: Closed Ruy Lopez: Unusual White 6th moves.} 8. Bb3 {[%emt 0:04:50]} d5 {[%emt 0:00:13]} 9. dxe5 {[%emt 0:00:20] Black must now prevent Rd1.} Na5 {[%emt 0:01:22]} 10. Rd1 {[%emt 0:05:05]} Bb7 {[%emt 0:06:52]} 11. Nbd2 {[%emt 0:02:55] [#] aiming for Nxe4.} Nxb3 {[%emt 0:03:00]} 12. axb3 {[%emt 0:00:42] Strongly threatening Nxe4.} Qc8 {[%emt 0:04:26]} 13. c4 {[%emt 0:21:29]} (13. c3 $5 {[%cal Rb3b4]}) 13... Nxd2 {[%emt 0:21:04]} 14. Bxd2 {[%emt 0:04:53]} dxc4 {[%emt 0:09:19] [#] A balanced but interesting game.  Weighted Error Value: White=0.10 (very precise) /Black=0.03 (flawless)} {Predecessor:} 15. bxc4 $146 b4 16. Ra5 c5 17. e6 fxe6 18. Bg5 Bxf3 19. Qxf3 Ra7 20. Bxe7 Rxe7 21. Rd6 {½-½ (41) Loeffler,M (2266)-Basso,P (2600) Cannes 2022} 1/2-1/2

[Event "VII Totalizator Sportowy 2022"]
[Site "Bydgoszcz"]
[Date "2022.06.27"]
[Round "3.5"]
[White "Czarnota, Pawel"]
[Black "Rudzinska, Michalina"]
[Result "1-0"]
[ECO "B15"]
[WhiteElo "2502"]
[BlackElo "2236"]
[Annotator "TA"]
[PlyCount "55"]
[EventDate "2022.06.25"]
[EventType "swiss"]
[EventCountry "POL"]
[SourceTitle "playchess.com"]
[Source "ChessBase"]
[SourceQuality "1"]
[TimeControl "40/5400+30:1800+30"]

{[%evp 14,55,29,28,35,9,62,16,17,18,63,76,35,29,58,66,114,45,106,92,194,112,139,113,135,99,143,144,178,172,234,235,249,252,364,347,664,652,705,700,948,903,879,855]} 1. e4 {[%emt 0:00:05] Duda,Jan Krzysztof} c6 {[%emt 0:00:07]} 2. d4 {[%emt 0:00:50]} d5 {[%emt 0:00:09]} 3. Nc3 {[%emt 0:00:50]} dxe4 {[%emt 0:00:09]} 4. Nxe4 {[%emt 0:00:05]} Nf6 {[%emt 0:00:10]} 5. Nxf6+ {[%emt 0:00:35]} exf6 {[%emt 0:00:07]} 6. c3 {[%emt 0:00:21]} Bd6 {[%emt 0:00:09]} 7. Bd3 {[%emt 0:00:38]} O-O {[%emt 0:00:10]} 8. Qc2 {[%emt 0:00:10] Active counter play!} Re8+ {[%emt 0:00:08] B15: Caro-Kann: 3 Nc3: 3...g6 and 3...dxe4 4 Nxe4 Nf6 5 Nxf6+ exf6.} 9. Ne2 {[%emt 0:00:12]} (9. Be3 $5 {[%cal Rd3h7]}) 9... h5 {[%emt 0:00:11]} ({Black should play} 9... f5 $11) 10. Be3 {[%emt 0:01:32]} (10. O-O $14) 10... Nd7 $11 {[%emt 0:00:14] The position is equal.} 11. O-O-O {[%emt 0:00:35]} b5 {[%emt 0:00:24]} 12. d5 {[%emt 0:01:39]} c5 {[%emt 0:00:11]} 13. Bxb5 {[%emt 0:00:33]} Rb8 {[%emt 0:00:32]} 14. c4 {[%emt 0:01:17][%cal Bc3c4,Bc4b5][%mdl 32] [#]} g6 $146 {[%emt 0:01:03] [#]} (14... Re7 $14) ({Predecessor:} 14... a6 15. Ba4 Re7 16. Ng3 Ne5 17. Ne4 Reb7 18. b3 Rb4 19. Bd2 Rxa4 20. bxa4 Bf5 {1-0 (63) Duda,J (2757)-Carlsen,M (2863) Stavanger 2020 CBM 199 [Duda,Jan Krzysztof]}) 15. h3 {[%emt 0:08:59]} (15. Rhe1 $1 $16) 15... Rxb5 {[%emt 0:14:42]} 16. cxb5 $16 {[%emt 0:00:19]} Ne5 {[%emt 0:00:23]} (16... Nb6 $16) 17. Qa4 {[%emt 0:03:43]} ({Worse is} 17. Bxc5 Bf5 18. Qc3 Bxc5 $17) (17. Ng3 $18) 17... Bf5 {[%emt 0:05:34]} 18. Nc3 {[%emt 0:03:35]} Qd7 {[%emt 0:08:07]} 19. b6 {[%emt 0:25:27] Threatens to win with Qxd7.} axb6 {[%emt 0:27:46]} 20. Qxd7 {[%emt 0:00:07]} Bxd7 {[%emt 0:01:24] A strong pair of Bishops.} 21. Ne4 {[%emt 0:02:56][%csl LRd6,LRf6]} Nd3+ {[%emt 0:01:07]} (21... Be7 {was necessary.} 22. b3 f5) 22. Rxd3 $18 {[%emt 0:00:27][%cal Bd1d3,Bd3a3,Ba3a8,Ba8d8][%mdl 32]} Rxe4 {[%emt 0:00:08]} 23. Ra3 {[%emt 0:02:26]} b5 {[%emt 0:09:50]} (23... Re8 $142 24. Re1 Rb8) 24. Ra8+ {[%emt 0:02:23]} Kg7 $2 {[%emt 0:01:15]} (24... Re8) 25. Rd8 {[%emt 0:02:04] White is clearly winning.} Re7 {[%emt 0:00:09]} 26. Re1 {[%emt 0:00:05]} b4 {[%emt 0:09:29] [#]} 27. Bh6+ $1 {[%emt 0:00:47][%mdl 512]} Kxh6 {[%emt 0:00:07]} 28. Rxe7 {[%emt 0:00:04] Weighted Error Value: White=0.14 (very precise) /Black=0.57} 1-0